bitfinex/quotes_ETHUSD_20250803
["timestamp","ask_amount","ask_price","bid_price","bid_amount"]
[1754246306228,36.77694707,3491.2,3491.1,0.002]
[1754246306427,37.8468,3491.2,3491.1,0.002]
[1754246309124,37.383,3491.2,3491.1,0.002]
[1754246309525,37.8588,3491.2,3491.1,0.002]
[1754246310124,38.3237,3491.2,3491.1,0.002]
[1754246312255,37.8588,3491.2,3491.1,0.002]
[1754246313165,34.383,3491.2,3491.1,0.002]
[1754246315471,4.8588,3491.2,3491.1,0.002]
[1754246315771,35.3237,3491.2,3491.1,0.002]
[1754246315978,36.7518767,3491.2,3491.1,0.002]
[1754246316147,36.2869767,3491.2,3491.1,0.002]
[1754246316347,39.7518767,3491.2,3491.1,0.002]
[1754246318283,35.3688767,3491.2,3491.1,0.002]
[1754246318458,39.7518767,3491.2,3491.1,0.002]
[1754246321995,42.4148767,3491.2,3491.1,0.002]
[1754246322200,46.7978767,3491.2,3491.1,0.002]
[1754246322499,44.429,3491.2,3491.1,0.002]
[1754246323045,41.429,3491.2,3491.1,0.002]
[1754246323404,42.3697,3491.2,3491.1,0.002]
[1754246324491,45.3697,3491.2,3491.1,0.002]
[1754246329724,40.9867,3491.2,3491.1,0.002]
[1754246330034,44.428,3491.2,3491.1,0.002]
[1754246331999,7.046,3491.2,3491.1,0.448]
[1754246332182,6.889,3491.5,3491.1,0.9021]
[1754246332387,4.382,3491.4,3491.2,0.9001]
[1754246332697,7.382,3491.4,3491.3,0.9001]
[1754246333936,7.382,3491.4,3491.1,0.9021]
[1754246334528,40.0,3491.3,3491.1,0.002]
[1754246334732,34.382,3491.2,3491.1,0.002]
[1754246334893,35.3227,3491.2,3491.1,0.002]
[1754246335094,38.3227,3491.2,3491.1,0.002]
[1754246335734,37.8578,3491.2,3491.1,0.002]
[1754246336039,37.382,3491.2,3491.1,0.002]
[1754246336453,33.0,3491.2,3491.1,0.002]
[1754246336729,4.382,3491.2,3491.1,0.9021]
[1754246339632,10.0,3491.3,3491.1,0.9021]
[1754246339851,30.0,3491.3,3491.1,0.9021]
[1754246340008,4.382,3491.2,3491.1,0.002]
[1754246340637,4.382,3491.2,3491.1,0.9176]
[1754246340801,6.889,3491.5,3491.1,0.9176]
[1754246341008,4.382,3491.4,3491.1,0.9176]
[1754246341205,4.382,3491.4,3491.2,0.9156]
[1754246341444,4.382,3491.4,3491.3,0.9156]
[1754246343626,4.381,3491.4,3491.3,0.9156]
[1754246343826,4.381,3491.5,3491.3,0.9156]
[1754246344026,4.381,3491.7,3491.4,0.9156]
[1754246344402,4.381,3491.7,3491.5,0.9156]
[1754246344602,4.381,3491.7,3491.6,0.9156]
[1754246345156,0.001,3492.0,3491.6,0.9156]
[1754246345439,0.001,3492.0,3491.1,1.03511726]
[1754246345440,0.001,3492.0,3491.8,0.6932]
[1754246345734,0.001,3492.0,3491.9,0.16088]
[1754246345935,0.001,3492.0,3491.9,1.07648]
[1754246346777,0.001,3492.0,3491.9,1.6551177]
[1754246347130,0.001,3492.0,3491.9,1.62648]
[1754246347641,0.001,3492.0,3491.9,1.76968]
[1754246347842,0.001,3492.0,3491.9,1.7983177]
[1754246348662,0.001,3492.0,3491.9,1.76968]
[1754246350572,0.001,3492.0,3491.9,2.630725]
[1754246352268,0.001,3492.0,3491.9,1.715125]
[1754246353198,0.001,3492.0,3491.9,2.630725]
[1754246353867,0.001,3492.0,3491.9,2.6593627]
[1754246354496,0.001,3492.0,3491.9,2.630725]
[1754246358396,0.001,3492.0,3491.9,5.630725]
[1754246366347,0.001,3492.0,3491.9,4.715125]
[1754246366554,0.001,3492.0,3491.9,9.093125]
[1754246367556,0.4968,3492.0,3491.9,8.543125]
[1754246367750,0.001,3492.0,3491.9,8.543125]
[1754246367955,0.001,3492.0,3491.9,9.093125]
[1754246372437,0.001,3492.0,3491.9,10.060525]
[1754246373064,0.001,3492.0,3491.9,9.561525]
[1754246373251,0.001,3492.0,3491.9,9.093125]
[1754246373449,0.001,3492.0,3491.9,4.715125]
[1754246373762,0.4825,3492.0,3491.9,4.715125]
[1754246373952,0.9396,3492.0,3491.9,9.092125]
[1754246374675,0.9396,3492.0,3491.9,5.381245]
[1754246374861,0.9396,3492.0,3491.9,0.861045]
[1754246375270,0.9396,3492.0,3491.8,4.5202]
[1754246375480,0.001,3492.0,3491.8,5.381317]
[1754246375682,0.9386,3491.9,3491.8,8.381317]
[1754246375843,0.9386,3491.9,3491.7,4.377]
[1754246376177,0.9386,3491.8,3491.7,4.377]
[1754246377508,0.9386,3491.8,3491.7,4.9151367]
[1754246384463,0.9386,3491.8,3491.7,4.94377604]
[1754246384664,0.9386,3491.8,3491.7,4.9151367]
[1754246384991,0.9386,3491.8,3491.7,5.7763037]
[1754246390021,0.001,3492.0,3491.8,0.55]
[1754246390177,0.001,3492.0,3491.9,7.19843457]
[1754246390505,0.001,3492.0,3491.9,7.16979687]
[1754246390909,0.001,3492.0,3491.9,7.31299687]
[1754246391084,0.001,3492.0,3491.9,11.61869687]
[1754246391290,0.001,3492.0,3491.9,11.76189687]
[1754246394419,0.001,3492.0,3491.9,10.79349687]
[1754246394716,0.9396,3492.0,3491.9,7.79349687]
[1754246394883,0.9396,3492.0,3491.9,5.5507]
[1754246395632,0.4825,3492.0,3491.9,5.5507]
[1754246399512,0.001,3492.0,3491.9,5.5507]
[1754246402790,0.001,3492.4,3492.0,0.55]
[1754246402998,0.001,3492.4,3492.3,3.55]
[1754246403192,0.001,3492.4,3492.3,8.0692]
[1754246403429,0.001,3492.4,3492.3,9.4924]
[1754246405928,0.001,3493.5,3492.4,0.55]
[1754246406131,0.001,3493.5,3493.4,16.65166497]
[1754246406310,0.001,3493.5,3493.4,21.16986497]
[1754246407232,0.001,3493.5,3493.4,21.66006497]
[1754246407608,0.001,3493.5,3493.4,22.59306497]
[1754246408596,0.001,3493.5,3493.4,5.5584]
[1754246408805,0.001,3493.5,3493.4,6.0965367]
[1754246413231,0.001,3493.5,3493.4,6.30701343]
[1754246415036,0.001,3493.5,3493.4,1.93201343]
[1754246415219,0.9202,3493.5,3493.4,6.30601343]
[1754246416325,0.4912,3493.5,3493.4,6.30601343]
[1754246417850,0.4912,3493.5,3493.4,6.30501343]
[1754246421764,0.001,3493.5,3493.4,6.30501343]
[1754246421922,0.001,3493.5,3493.4,10.23801343]
[1754246424137,0.001,3493.5,3493.4,10.37984637]
[1754246424925,0.001,3493.5,3493.4,10.23801343]
[1754246428664,0.001,3493.5,3493.4,26.31399435]
[1754246428824,0.001,3493.5,3493.4,26.45478262]
[1754246430024,0.001,3493.9,3493.5,3.55]
[1754246430243,0.001,3493.9,3493.8,19.62598092]
[1754246430438,0.001,3493.9,3493.8,24.14118092]
[1754246430861,0.001,3493.9,3493.8,25.09708092]
[1754246432560,0.001,3493.9,3493.8,25.07398092]
[1754246432788,0.001,3493.9,3493.8,25.54570412]
[1754246433252,0.001,3493.9,3493.8,25.08670412]
[1754246433689,0.9146,3493.9,3493.8,20.71470412]
[1754246433987,0.9146,3493.9,3493.8,5.4597232]
[1754246434191,0.9146,3493.9,3493.8,4.988]
[1754246434346,0.9146,3493.9,3493.8,5.538]
[1754246434778,0.9146,3493.9,3493.8,4.988]
[1754246435360,0.9146,3493.9,3493.8,8.538]
[1754246435686,0.9146,3493.9,3493.8,7.988]
[1754246435888,0.9146,3493.9,3493.8,8.538]
[1754246440370,0.9146,3493.9,3493.8,5.538]
[1754246440774,0.9146,3493.9,3493.8,0.4738]
[1754246443776,0.9146,3493.9,3493.4,9.371]
[1754246443974,0.9136,3493.8,3493.4,9.371]
[1754246444171,0.9136,3493.7,3493.4,5.0]
[1754246444389,0.9136,3493.6,3493.4,5.0]
[1754246444603,30.0,3493.8,3493.5,0.860799]
[1754246444790,2.86824707,3493.7,3493.5,0.860799]
[1754246445107,30.0,3493.8,3493.4,5.0]
[1754246445312,0.9136,3493.6,3493.4,5.0]
[1754246445474,30.0,3493.8,3493.4,5.0]
[1754246445803,0.9136,3493.5,3493.4,5.0]
[1754246460663,38.2846,3493.5,3493.4,5.0]
[1754246460996,35.2846,3493.5,3493.4,5.0]
[1754246461768,35.2846,3493.5,3493.4,5.002]
[1754246461965,35.2836,3493.5,3493.4,5.002]
[1754246462202,38.15284707,3493.5,3493.4,5.002]
[1754246463426,33.83844707,3493.5,3493.4,5.002]
[1754246463729,38.20944707,3493.5,3493.4,5.002]
[1754246464693,33.83844707,3493.5,3493.4,5.002]
[1754246464890,38.20944707,3493.5,3493.4,5.002]
[1754246467006,33.36894707,3493.5,3493.4,5.002]
[1754246467192,4.372,3493.5,3493.4,5.002]
[1754246467731,0.001,3493.5,3493.4,5.002]
[1754246467928,0.001,3493.5,3493.4,10.3077]
[1754246470930,0.001,3493.5,3493.4,11.0009]
[1754246471131,0.001,3493.5,3493.4,13.75865809]
[1754246471332,0.001,3493.5,3493.4,13.87340809]
[1754246472434,0.001,3493.5,3493.4,16.87340809]
[1754246477415,0.001,3493.9,3493.8,19.62598092]
[1754246477614,0.001,3493.9,3493.8,23.99498092]
[1754246477868,0.001,3493.9,3493.8,25.6383329]
[1754246478455,0.001,3493.9,3493.8,25.7530549]
[1754246482213,0.001,3493.9,3493.8,8.74137398]
[1754246482707,0.001,3493.9,3493.8,8.9521968]
[1754246482905,0.001,3493.9,3493.8,4.5831968]
[1754246483104,0.5007,3493.9,3493.8,8.4011968]
[1754246483290,0.001,3493.9,3493.8,8.9511968]
[1754246484297,0.001,3493.9,3493.8,4.37237398]
[1754246484458,0.001,3493.9,3493.8,8.74037398]
[1754246486189,0.001,3493.9,3493.8,4.37237398]
[1754246486503,0.5007,3493.9,3493.8,8.74037398]
[1754246487668,0.001,3493.9,3493.8,8.74037398]
[1754246490286,0.493,3493.9,3493.8,8.74037398]
[1754246491822,0.001,3493.9,3493.8,8.74037398]
[1754246492169,0.001,3493.9,3493.8,24.8163549]
[1754246492374,0.001,3493.9,3493.8,25.7346549]
[1754246496170,0.001,3494.3,3493.9,3.55]
[1754246496369,0.001,3494.3,3494.2,19.62598092]
[1754246496603,0.001,3494.3,3494.2,24.13618092]
[1754246496806,0.001,3494.3,3494.2,25.05448092]
[1754246496973,0.001,3494.3,3494.2,25.54648092]
[1754246497826,0.001,3495.2,3494.3,3.55]
[1754246498116,0.001,3495.2,3495.1,0.55]
[1754246498277,0.001,3495.2,3495.1,4.94561148]
[1754246498478,0.001,3495.2,3495.1,5.0602]
[1754246498699,0.493,3495.2,3495.1,5.0602]
[1754246499802,0.001,3495.2,3495.1,5.0602]
[1754246500004,0.001,3495.2,3495.1,7.17381809]
[1754246500191,0.493,3495.2,3495.1,7.17381809]
[1754246500984,0.493,3495.2,3495.1,7.66681809]
[1754246503687,0.9467,3495.2,3495.1,7.66681809]
[1754246504311,0.493,3495.2,3495.1,7.66681809]
[1754246505033,0.493,3495.2,3495.1,3.29981809]
[1754246505322,0.9467,3495.2,3495.1,7.66581809]
[1754246505636,0.9467,3495.2,3495.1,5.5522]
[1754246507104,0.9467,3495.2,3495.1,5.0022]
[1754246507868,0.493,3495.2,3495.1,5.0022]
[1754246508034,0.9467,3495.2,3495.1,5.0022]
[1754246513306,0.001,3495.2,3495.1,5.5522]
[1754246513515,0.001,3495.2,3495.1,7.75910809]
[1754246519954,0.4699,3495.2,3495.1,7.75910809]
[1754246520311,0.4699,3495.2,3495.1,3.39310809]
[1754246520513,0.9297,3495.2,3495.1,4.857]
[1754246521345,0.9297,3495.2,3495.1,5.0002]
[1754246521515,0.9297,3495.2,3495.1,4.857]
[1754246521709,0.001,3495.2,3495.1,5.5502]
[1754246521907,0.001,3495.2,3495.1,8.14961809]
[1754246522144,0.001,3495.2,3495.1,8.64381809]
[1754246522508,0.001,3495.2,3495.1,8.14961809]
[1754246523123,0.001,3495.2,3495.1,7.71281809]
[1754246523329,0.001,3495.2,3495.1,8.64381809]
[1754246525044,0.9297,3495.2,3495.1,7.71281809]
[1754246525212,0.9297,3495.2,3495.1,5.5502]
[1754246525412,0.4699,3495.2,3495.1,5.5502]
[1754246526647,0.001,3495.2,3495.1,5.5502]
[1754246526868,0.001,3495.2,3495.1,6.10522]
[1754246530952,0.001,3495.2,3495.1,1.74122]
[1754246531154,0.4699,3495.2,3495.1,5.5502]
[1754246531455,0.4699,3495.2,3495.1,10.5502]
[1754246532351,0.001,3495.2,3495.1,10.5502]
[1754246533783,0.4699,3495.2,3495.1,10.5502]
[1754246534845,0.4699,3495.2,3495.1,6.1862]
[1754246535046,0.4699,3495.2,3495.1,11.46882]
[1754246535972,0.001,3495.2,3495.1,27.40160092]
[1754246536178,0.001,3495.2,3495.1,27.98160092]
[1754246536478,0.001,3495.2,3495.1,27.54480092]
[1754246537679,0.001,3495.2,3495.1,30.54480092]
[1754246537891,0.001,3495.2,3495.1,31.47580092]
[1754246538053,0.001,3495.6,3495.2,3.55]
[1754246538355,0.001,3495.6,3495.5,19.76918092]
[1754246538554,0.001,3495.6,3495.5,24.13218092]
[1754246538766,0.001,3495.6,3495.5,20.70018092]
[1754246538965,0.001,3495.6,3495.5,8.0562]
[1754246541448,0.001,3495.6,3495.5,8.5251]
[1754246541748,0.001,3495.6,3495.5,9.44372]
[1754246542141,0.001,3495.6,3495.5,25.51970092]
[1754246542358,0.001,3495.6,3495.5,26.45070092]
[1754246544584,0.001,3495.6,3495.5,25.51970092]
[1754246544770,0.001,3495.6,3495.5,26.66185532]
[1754246545658,0.001,3495.6,3495.5,22.29885532]
[1754246545860,0.001,3495.6,3495.5,25.73085532]
[1754246546692,0.4699,3495.6,3495.5,9.6538744]
[1754246546859,0.9297,3495.6,3495.5,8.1852544]
[1754246547183,0.9297,3495.6,3495.5,8.7352544]
[1754246547387,0.9297,3495.6,3495.5,8.1852544]
[1754246547590,0.9297,3495.6,3495.5,8.7352544]
[1754246547806,0.9297,3495.6,3495.5,9.60877984]
[1754246548102,0.001,3495.6,3495.5,9.60877984]
[1754246548454,0.001,3495.6,3495.5,26.61576076]
[1754246550048,0.001,3495.6,3495.5,22.25376076]
[1754246550250,0.001,3495.6,3495.5,26.61576076]
[1754246554561,0.001,3495.6,3495.5,29.47658181]
[1754246555200,0.001,3495.6,3495.5,26.61576076]
[1754246557115,0.001,3495.6,3495.5,29.47658181]
[1754246558108,0.001,3496.0,3495.9,3.41049372]
[1754246558310,0.001,3496.7,3496.0,6.41041182]
[1754246558514,0.001,3496.7,3496.6,19.62598092]
[1754246558692,0.001,3496.7,3496.6,24.13118092]
[1754246559274,0.001,3496.7,3496.6,24.59308092]
[1754246559709,0.4629,3496.7,3496.6,24.59308092]
[1754246559896,0.4629,3496.7,3496.6,5.67666188]
[1754246560100,0.912,3496.7,3496.6,8.5171]
[1754246560476,0.001,3496.7,3496.6,24.59308092]
[1754246561296,0.4629,3496.7,3496.6,24.59308092]
[1754246561589,0.4629,3496.7,3496.6,24.59208092]
[1754246561887,0.912,3496.7,3496.6,6.55018732]
[1754246562090,0.912,3496.7,3496.6,8.5161]
[1754246562927,0.912,3496.7,3496.6,24.59208092]
[1754246562928,0.001,3496.7,3496.6,24.59208092]
[1754246566794,0.001,3496.7,3496.6,25.53928092]
[1754246567412,0.001,3496.7,3496.6,25.06698092]
[1754246568136,0.001,3496.9,3496.7,3.55]
[1754246568312,0.001,3497.3,3496.7,3.55]
[1754246568313,0.001,3497.3,3497.2,0.55]
[1754246568502,0.001,3497.3,3497.2,4.9395943]
[1754246568704,0.001,3497.3,3497.2,6.0299943]
[1754246568902,0.001,3497.3,3497.2,6.81691198]
[1754246569431,0.001,3497.3,3497.2,9.33161198]
[1754246571442,0.001,3497.3,3497.2,10.27881198]
[1754246571932,0.001,3498.1,3497.4,0.55]
[1754246572134,0.001,3498.1,3498.0,0.55]
[1754246572436,0.001,3498.1,3498.0,8.0532]
[1754246572840,0.001,3498.1,3498.0,8.5151]
[1754246575026,0.912,3498.1,3498.0,8.5151]
[1754246576139,0.912,3498.1,3498.0,8.5141]
[1754246576347,0.912,3498.1,3498.0,7.9641]
[1754246576957,0.001,3498.1,3498.0,8.5141]
[1754246577122,0.912,3498.1,3498.0,8.5141]
[1754246578343,0.4629,3498.1,3498.0,9.36551]
[1754246578546,0.001,3498.1,3498.0,9.36551]
[1754246580347,0.001,3498.1,3498.0,10.29531]
[1754246581112,0.001,3498.1,3498.0,10.51163632]
[1754246585010,0.001,3498.1,3498.0,9.58183632]
[1754246585215,0.001,3498.1,3498.0,9.58083632]
[1754246586548,0.001,3498.1,3498.0,5.22283632]
[1754246586749,0.001,3498.1,3498.0,9.58083632]
[1754246587263,0.001,3498.1,3498.0,10.51063632]
[1754246588051,0.001,3498.1,3498.0,14.74063632]
[1754246588384,0.4841,3499.2,3498.2,0.55]
[1754246588669,0.4841,3499.1,3498.8,3.55]
[1754246588867,3.0,3501.2,3499.1,0.1432]
[1754246589156,16.07598092,3501.5,3499.3,3.55]
[1754246589157,40.0,3500.8,3499.3,3.55]
[1754246589328,30.0,3500.8,3499.5,0.55]
[1754246589658,0.9275,3500.7,3500.0,0.1432]
[1754246589857,0.9275,3500.7,3500.1,4.358]
[1754246590171,10.0,3500.9,3500.1,4.358]
[1754246590172,2.32025,3500.6,3500.1,4.358]
[1754246590513,3.0,3500.9,3500.2,0.859098]
[1754246590514,0.9275,3500.5,3500.2,0.859098]
[1754246590633,0.9275,3500.5,3500.2,5.217098]
[1754246590832,16.07598092,3500.7,3500.2,5.217098]
[1754246591040,0.9275,3500.4,3500.2,5.217098]
[1754246591354,16.07598092,3500.7,3500.2,4.358]
[1754246591559,0.9275,3500.3,3500.2,4.358]
[1754246592125,0.9275,3500.3,3500.1,5.217147]
[1754246592323,0.9275,3500.2,3500.1,0.859147]
[1754246592524,0.001,3500.5,3500.1,0.859147]
[1754246592525,0.001,3500.5,3500.1,5.217147]
[1754246592764,0.4841,3500.4,3500.2,0.57856979]
[1754246592923,0.001,3500.5,3500.3,4.358]
[1754246593253,0.001,3500.5,3500.4,0.57856816]
[1754246593561,0.001,3500.5,3500.4,0.55]
[1754246593762,0.9285,3500.5,3500.4,0.55]
[1754246595375,0.9285,3500.5,3500.4,4.357]
[1754246597161,0.9285,3500.5,3500.2,4.357]
[1754246597378,0.9275,3500.4,3500.1,0.859147]
[1754246597546,2.62794809,3500.3,3499.9,4.357]
[1754246597748,0.9275,3500.2,3499.9,4.357]
[1754246598150,0.001,3500.5,3499.9,4.357]
[1754246598357,0.9275,3500.1,3499.9,4.357]
[1754246598582,0.9275,3500.0,3499.9,4.357]
[1754246598764,0.9275,3500.0,3499.7,0.859147]
[1754246599080,0.9275,3499.9,3499.8,4.357]
[1754246599273,0.9275,3499.9,3499.7,0.859147]
[1754246599452,0.9275,3499.8,3499.7,5.216147]
[1754246600058,0.9275,3499.8,3499.7,0.859147]
[1754246601394,0.001,3500.5,3499.7,1.43772087]
[1754246601558,0.4841,3500.3,3499.8,0.55]
[1754246601760,0.4434,3500.2,3500.1,0.1432]
[1754246602394,0.9275,3500.2,3500.1,0.1432]
[1754246602891,0.9275,3500.2,3500.1,0.6273]
[1754246603659,0.9275,3500.2,3499.9,4.357]
[1754246603874,0.001,3500.5,3499.6,0.1432]
[1754246603875,0.9275,3500.1,3499.6,0.1432]
[1754246604044,0.001,3500.5,3499.7,0.859184]
[1754246604252,0.9275,3500.4,3499.7,0.859184]
[1754246604498,0.9275,3500.3,3499.7,0.859184]
[1754246604652,0.001,3500.5,3499.7,0.859184]
[1754246604653,0.9275,3500.2,3499.7,0.859184]
[1754246604854,3.31164707,3500.1,3499.7,0.859184]
[1754246605063,0.9275,3500.0,3499.7,0.859184]
[1754246605279,30.0,3500.4,3499.7,0.859184]
[1754246605511,0.9275,3499.9,3499.7,0.859184]
[1754246605664,0.9275,3499.8,3499.7,0.859184]
[1754246605989,0.9275,3499.8,3499.4,0.1432]
[1754246606182,0.001,3500.5,3499.3,4.359]
[1754246606183,0.9275,3499.7,3499.3,4.359]
[1754246606346,0.4434,3499.6,3499.3,0.859321]
[1754246606549,0.9275,3499.6,3499.3,0.859321]
[1754246606751,0.9275,3499.5,3499.3,0.859321]
[1754246607178,0.9275,3499.4,3499.3,0.859321]
[1754246608412,0.4841,3499.4,3499.3,0.859321]
[1754246609076,0.9234,3499.4,3499.3,0.859321]
[1754246610585,0.4914,3500.0,3499.3,0.859321]
[1754246610808,0.9307,3499.9,3499.3,0.859321]
[1754246611006,0.4914,3500.1,3499.4,0.57857632]
[1754246611305,0.4914,3500.1,3499.6,0.55]
[1754246611507,0.001,3500.5,3499.6,0.6932]
[1754246611700,0.4914,3500.0,3499.6,0.6932]
[1754246611905,0.4914,3500.0,3499.7,0.859184]
[1754246612822,0.4914,3500.2,3499.7,0.859184]
[1754246612984,0.001,3500.5,3499.7,0.859184]
[1754246612985,0.4914,3500.1,3499.7,0.859184]
[1754246613189,0.4914,3500.0,3499.7,0.859184]
[1754246615082,0.001,3500.5,3499.7,0.859184]
[1754246615278,0.4914,3499.9,3499.7,0.859184]
[1754246616017,0.4914,3499.8,3499.7,1.409184]
[1754246618516,0.4914,3499.8,3499.7,0.859184]
[1754246618517,0.9307,3499.8,3499.7,0.859184]
[1754246620003,0.9307,3499.8,3499.3,4.357]
[1754246620218,0.4393,3499.7,3499.4,0.859309]
[1754246620555,0.9307,3499.7,3499.4,0.859309]
[1754246620736,3.001,3500.5,3499.4,0.859309]
[1754246620905,0.9307,3499.6,3499.4,0.859309]
[1754246621226,0.9307,3499.5,3499.4,0.859309]
[1754246621934,0.4393,3499.5,3499.4,0.859309]
[1754246622137,0.9307,3499.5,3499.4,0.859309]
[1754246623635,0.4393,3499.9,3499.4,0.859309]
[1754246623940,0.9307,3499.8,3499.4,0.859309]
[1754246624113,0.4393,3499.8,3499.4,0.859309]
[1754246624442,0.9307,3499.7,3499.4,0.859309]
[1754246624631,0.4914,3499.6,3499.4,0.859309]
[1754246625204,0.001,3500.5,3499.4,0.859309]
[1754246625528,1.2309,3500.4,3499.5,0.1432]
[1754246625836,0.001,3500.5,3499.6,1.4846]
[1754246626028,0.001,3500.5,3500.1,0.55]
[1754246626206,0.001,3500.5,3500.3,0.1432]
[1754246626741,0.001,3500.5,3500.3,1.002231]
[1754246628334,0.001,3500.5,3500.3,0.1432]
[1754246628528,0.001,3500.5,3500.4,1.3739]
[1754246628724,0.001,3500.5,3500.4,0.4393]
[1754246630506,0.9317,3500.5,3500.4,0.4393]
[1754246630710,0.9317,3500.5,3500.1,4.356]
[1754246630939,0.9307,3500.4,3500.1,4.356]
[1754246631111,0.4914,3500.3,3500.1,4.356]
[1754246631442,0.001,3500.5,3500.1,4.356]
[1754246631647,0.001,3500.5,3500.1,5.2906]
[1754246632221,0.9307,3500.4,3500.1,4.356]
[1754246632435,0.9307,3500.3,3500.2,0.4914]
[1754246632740,0.9307,3500.3,3500.1,4.356]
[1754246632940,0.4307,3500.3,3500.1,5.215108]
[1754246633310,0.4307,3500.3,3500.1,4.356]
[1754246633510,0.4307,3500.3,3500.2,0.4307]
[1754246634643,0.001,3500.5,3500.2,0.4307]
[1754246634950,0.9307,3500.4,3500.1,4.7867]
[1754246635149,0.001,3500.5,3500.1,4.7867]
[1754246635351,0.9307,3500.3,3500.1,4.7867]
[1754246635650,0.9307,3500.3,3500.1,4.356]
[1754246636449,0.9307,3500.3,3500.1,5.215108]
[1754246636846,0.001,3500.5,3500.1,5.215108]
[1754246637046,0.4924,3500.5,3500.1,5.685308]
[1754246637255,0.9317,3500.5,3500.1,5.685308]
[1754246637755,0.9317,3500.5,3500.1,4.8262]
[1754246638068,0.9317,3500.5,3500.1,5.685308]
[1754246638215,0.9317,3500.5,3500.1,5.215108]
[1754246638216,0.4403,3500.5,3500.1,5.215108]
[1754246638417,0.001,3500.5,3500.2,0.4702]
[1754246638830,0.001,3500.5,3500.1,5.215108]
[1754246638831,0.9386,3500.5,3500.1,5.215108]
[1754246639353,0.001,3500.5,3500.1,0.859108]
[1754246639566,0.9376,3500.4,3500.1,5.215108]
[1754246639940,0.001,3500.5,3500.2,0.4986]
[1754246642765,0.001,3500.5,3499.8,0.1432]
[1754246642967,0.001,3500.5,3498.3,0.21073155]
[1754246642968,30.0,3500.3,3499.5,4.356]
[1754246643154,30.0,3500.3,3499.4,0.114576]
[1754246643155,3.80584707,3500.2,3499.4,0.114576]
[1754246643461,2.86824707,3500.2,3499.5,0.4986]
[1754246643759,0.001,3500.5,3499.8,0.1432]
[1754246643965,0.4885,3500.4,3499.9,4.356]
[1754246644126,0.001,3500.5,3499.9,4.356]
[1754246644331,0.001,3500.5,3499.7,0.4885]
[1754246644332,0.4491,3500.3,3499.7,0.4885]
[1754246644657,0.4885,3500.2,3499.7,0.4885]
[1754246644863,0.9376,3500.1,3499.5,4.8546]
[1754246645553,0.9376,3500.4,3499.6,0.9871]
[1754246645749,0.9376,3500.4,3499.7,0.4986]
[1754246645956,0.4885,3500.3,3499.7,0.4986]
[1754246648273,30.0,3500.2,3499.6,0.4885]
[1754246648494,0.9376,3500.1,3499.3,4.356]
[1754246648774,1.33136,3500.0,3499.1,0.859317]
[1754246648975,0.9376,3500.0,3499.3,0.4986]
[1754246649378,0.9376,3499.9,3499.1,1.002517]
[1754246649579,30.0,3499.7,3499.0,5.0]
[1754246649781,40.0,3499.5,3499.0,5.0]
[1754246649962,30.0,3499.5,3499.0,5.0]
[1754246650155,40.0,3499.3,3499.0,5.0]
[1754246650383,30.9376,3499.2,3499.0,5.0]
[1754246650613,0.9376,3499.2,3499.0,5.0]
[1754246650879,30.0,3499.2,3499.0,5.0]
[1754246651046,0.9376,3499.1,3499.0,5.0]
[1754246651250,33.9376,3499.1,3499.0,5.0]
[1754246651445,36.80584707,3499.1,3499.0,5.0]
[1754246652560,41.16684707,3499.1,3499.0,5.0]
[1754246657111,41.16684707,3499.1,3499.0,5.002]
[1754246659695,37.36,3499.1,3499.0,5.002]
[1754246659900,34.36,3499.1,3499.0,5.5006]
[1754246660066,34.36,3499.1,3499.0,5.002]
[1754246661283,35.2976,3499.1,3499.0,5.002]
[1754246661600,38.16584707,3499.1,3499.0,5.002]
[1754246661767,37.22824707,3499.1,3499.0,5.002]
[1754246662303,38.16584707,3499.1,3499.0,5.002]
[1754246663015,37.22824707,3499.1,3499.0,5.002]
[1754246663372,32.86824707,3499.1,3499.0,5.002]
[1754246663579,37.23124707,3499.1,3499.0,5.002]
[1754246665875,38.16884707,3499.1,3499.0,5.002]
[1754246670144,34.359,3499.1,3499.0,5.4797]
[1754246672008,34.359,3499.1,3499.0,5.002]
[1754246672211,35.319,3499.1,3499.0,5.002]
[1754246673529,34.359,3499.1,3499.0,5.002]
[1754246674209,35.319,3499.1,3499.0,5.002]
[1754246674408,38.18724707,3499.1,3499.0,5.002]
[1754246675502,34.8218,3499.1,3499.0,5.002]
[1754246675710,34.359,3499.1,3499.0,5.002]
[1754246677201,35.319,3499.1,3499.0,5.002]
[1754246678400,30.96,3499.1,3499.0,5.002]
[1754246678604,35.318,3499.1,3499.0,5.002]
[1754246678817,38.18624707,3499.1,3499.0,5.002]
[1754246679003,41.18624707,3499.1,3499.0,5.002]
[1754246680430,36.82824707,3499.1,3499.0,5.002]
[1754246680605,41.18624707,3499.1,3499.0,5.002]
[1754246689009,40.22624707,3499.1,3499.0,5.002]
[1754246690043,33.0,3499.1,3499.0,5.002]
[1754246690244,33.0,3499.1,3499.0,5.9253]